Workbook

Sheet 明细表
A1: 附件2
A2: 天门市2024年巩固脱贫成果支持产业发展脱贫户、监测对象直接从事特色种植养殖奖励扶持汇总表
A3: 乡镇 | B3: 村组 | C3: 户主姓名 | D3: 特色种养项目 | E3: 面积（亩） | F3: 奖补金额（元） | G3: 备注
A4: 多祥镇 | B4: 西湾村 | C4: 刘立冬 | D4: 水稻种植 | E4: 4.8 | F4: 480
A5: 多祥镇 | B5: 西湾村 | C5: 刘双军 | D5: 水稻种植 | E5: 6.48 | F5: 648
A6: 多祥镇 | B6: 张刘村 | C6: 张顺林 | D6: 油菜种植 | E6: 5 | F6: 500
A7: 多祥镇 | B7: 陈洲村 | C7: 陈松林 | D7: 油菜种植 | E7: 4.84 | F7: 484
A8: 多祥镇 | B8: 板桥村 | C8: 周传想 | D8: 油菜种植 | E8: 7 | F8: 700
A9: 多祥镇 | B9: 板桥村 | C9: 陈记奎 | D9: 小龙虾养殖 | E9: 30 | F9: 12000
A10: 多祥镇 | C10: 6 | E10: =SUM(E4:E9) -> 58.12 | F10: =SUM(F4:F9) -> 14812
A11: 岳口镇 | B11: 习桥村 | C11: 伍小中 | D11: 粮食种植 | E11: 2 | F11: 200
A12: 岳口镇 | B12: 谭台村 | C12: 龚小海 | D12: 芋环种植 | E12: 30 | F12: 15000
A13: 岳口镇 | B13: 幸福新村 | C13: 李响支 | D13: 油菜种植 | E13: 3 | F13: 300
A14: 岳口镇 | C14: 3 | E14: =SUM(E11:E13) -> 35 | F14: =SUM(F11:F13) -> 15500
A15: 小板镇 | B15: 码头村 | C15: 钟凤军 | D15: 小麦、水稻 | E15: 9.1 | F15: 910
A16: 小板镇 | B16: 码头村 | C16: 钟凤军 | D16: 油菜种植 | E16: 4.7 | F16: 470
A17: 小板镇 | B17: 永兴村 | C17: 丁芳 | D17: 水稻 | E17: 6.46 | F17: 646
A18: 小板镇 | B18: 永兴村 | C18: 丁芳 | D18: 油菜种植 | E18: 2 | F18: 200
A19: 小板镇 | B19: 大板村 | C19: 蔡国虎 | D19: 莲子种植 | E19: 2 | F19: 1000
A20: 小板镇 | B20: 大板村 | C20: 李文科 | D20: 水稻 | E20: 12 | F20: 1200
A21: 小板镇 | B21: 大板村 | C21: 阳涛 | D21: 水产养殖 | E21: 24 | F21: 9600
A22: 小板镇 | B22: 江台村 | C22: 杨铁华 | D22: 水稻 | E22: 5 | F22: 500
A23: 小板镇 | B23: 江台村 | C23: 金杜伟 | D23: 水稻 | E23: 6.5 | F23: 650
A24: 小板镇 | B24: 江台村 | C24: 李勇刚 | D24: 莲藕种植 | E24: 18 | F24: 9000
A25: 小板镇 | B25: 姚胡村 | C25: 肖和平 | D25: 小麦、水稻 | E25: 9.73 | F25: 973
A26: 小板镇 | B26: 姚胡村 | C26: 肖和平 | D26: 油菜种植 | E26: 3.2 | F26: 320
A27: 小板镇 | B27: 张岭村 | C27: 熊又兵 | D27: 水稻 | E27: 6.3 | F27: 630
A28: 小板镇 | B28: 张岭村 | C28: 张宽红 | D28: 水稻 | E28: 5.2 | F28: 520
A29: 小板镇 | B29: 张岭村 | C29: 张宽红 | D29: 莲藕种植 | E29: 26 | F29: 13000
A30: 小板镇 | B30: 张岭村 | C30: 樊义 | D30: 莲藕种植 | E30: 30 | F30: 15000
A31: 小板镇 | B31: 张岭村 | C31: 唐建军 | D31: 莲藕种植 | E31: 30 | F31: 15000
A32: 小板镇 | B32: 张岭村 | C32: 张正标 | D32: 水产养殖 | E32: 28 | F32: 11200
A33: 小板镇 | B33: 徐岭村 | C33: 阳红伟 | D33: 水稻 | E33: 6 | F33: 600
A34: 小板镇 | B34: 徐岭村 | C34: 阳红伟 | D34: 油菜种植 | E34: 4.5 | F34: 450
A35: 小板镇 | B35: 徐岭村 | C35: 赵志清 | D35: 水稻 | E35: 1.8 | F35: 180
A36: 小板镇 | B36: 徐岭村 | C36: 赵志清 | D36: 油菜种植 | E36: 1.8 | F36: 180
A37: 小板镇 | B37: 徐岭村 | C37: 黄五英 | D37: 水稻 | E37: 5 | F37: 500
A38: 小板镇 | B38: 徐岭村 | C38: 黄五英 | D38: 油菜种植 | E38: 3 | F38: 300
A39: 小板镇 | B39: 徐岭村 | C39: 聂桃容 | D39: 水稻 | E39: 6 | F39: 600
A40: 小板镇 | B40: 徐岭村 | C40: 聂桃容 | D40: 油菜种植 | E40: 3 | F40: 300
A41: 小板镇 | B41: 永合村 | C41: 罗宏发 | D41: 水稻 | E41: 2.53 | F41: 253
A42: 小板镇 | B42: 永合村 | C42: 罗宏发 | D42: 油菜种植 | E42: 2 | F42: 200
A43: 小板镇 | B43: 金方村 | C43: 郑银姣 | D43: 水稻 | E43: 6.8 | F43: 680
A44: 小板镇 | B44: 金方村 | C44: 郑银姣 | D44: 油菜种植 | E44: 2.5 | F44: 250
A45: 小板镇 | B45: 金方村 | C45: 王碧峰 | D45: 水稻 | E45: 6.5 | F45: 650
A46: 小板镇 | B46: 金方村 | C46: 王碧峰 | D46: 油菜种植 | E46: 2 | F46: 200
A47: 小板镇 | B47: 金方村 | C47: 王国仿 | D47: 水稻 | E47: 8.5 | F47: 850
A48: 小板镇 | B48: 金方村 | C48: 王国仿 | D48: 油菜种植 | E48: 3 | F48: 300
A49: 小板镇 | B49: 金星村 | C49: 周汉洲 | D49: 西红柿、黄瓜 | E49: 2 | F49: 1000
A50: 小板镇 | B50: 金星村 | C50: 周小桂 | D50: 西红柿、黄瓜 | E50: 1.5 | F50: 750
A51: 小板镇 | B51: 金星村 | C51: 周天元 | D51: 西红柿、黄瓜 | E51: 1 | F51: 500
A52: 小板镇 | B52: 金星村 | C52: 杨许二 | D52: 黄瓜 | E52: 1.5 | F52: 750
A53: 小板镇 | B53: 金星村 | C53: 朱方华 | D53: 西红柿、黄瓜 | E53: 2.5 | F53: 1250
A54: 小板镇 | C54: 39 | E54: =SUM(E15:E53) -> 301.62 | F54: =SUM(F15:F53) -> 91562
A55: 马湾镇 | B55: 邹湾村 | C55: 严情 | D55: 油菜 | E55: 1 | F55: 100
A56: 马湾镇 | B56: 邹湾村 | C56: 张明先 | D56: 水稻 | E56: 7.4 | F56: 740
A57: 马湾镇 | B57: 邹湾村 | C57: 张小柱 | D57: 黄蜀葵 | E57: 1.5 | F57: 750
A58: 马湾镇 | B58: 邹湾村 | C58: 张华中 | D58: 莲子 | E58: 17.5 | F58: 8750
A59: 马湾镇 | B59: 邹湾村 | C59: 邹平志 | D59: 黄蜀葵 | E59: 2.8 | F59: 1400
A60: 马湾镇 | B60: 邹湾村 | C60: 邹同生 | D60: 黄蜀葵 | E60: 1.8 | F60: 900
A61: 马湾镇 | B61: 邹湾村 | C61: 彭斯锋 | D61: 黄蜀葵 | E61: 1 | F61: 500
A62: 马湾镇 | B62: 陈马村 | C62: 胡次刚 | D62: 油菜 | E62: 10.4 | F62: 1040
A63: 马湾镇 | B63: 陈马村 | C63: 毛玉祥 | D63: 油菜 | E63: 3 | F63: 300
A64: 马湾镇 | B64: 陈马村 | C64: 毛木安 | D64: 黄蜀葵 | E64: 1.5 | F64: 750
A65: 马湾镇 | B65: 陈马村 | C65: 胡次刚 | D65: 黄蜀葵 | E65: 1.5 | F65: 750
A66: 马湾镇 | B66: 陈马村 | C66: 甘艳容 | D66: 黄蜀葵 | E66: 1.8 | F66: 900
A67: 马湾镇 | B67: 陈马村 | C67: 肖又仿 | D67: 黄蜀葵 | E67: 2 | F67: 1000
A68: 马湾镇 | B68: 陈马村 | C68: 毛玉祥 | D68: 黄蜀葵 | E68: 2 | F68: 1000
A69: 马湾镇 | B69: 陈马村 | C69: 毛红祥 | D69: 黄蜀葵 | E69: 2 | F69: 1000
A70: 马湾镇 | B70: 陈马村 | C70: 胡振华 | D70: 黄蜀葵 | E70: 1 | F70: 500
A71: 马湾镇 | B71: 陈马村 | C71: 陈中年 | D71: 黄蜀葵 | E71: 1.6 | F71: 800
A72: 马湾镇 | B72: 陈马村 | C72: 陈在红 | D72: 黄蜀葵 | E72: 1 | F72: 500
A73: 马湾镇 | B73: 便市村 | C73: 郑锋 | D73: 水稻 | E73: 4 | F73: 400
A74: 马湾镇 | B74: 便市村 | C74: 段甜甜 | D74: 黄蜀葵 | E74: 1.3 | F74: 650
A75: 马湾镇 | B75: 金滩村 | C75: 郑水财 | D75: 黄蜀葵 | E75: 2 | F75: 1000
A76: 马湾镇 | B76: 金滩村 | C76: 陈年安 | D76: 黄蜀葵 | E76: 2 | F76: 1000
A77: 马湾镇 | B77: 金滩村 | C77: 郑祖新 | D77: 黄蜀葵 | E77: 1 | F77: 500
A78: 马湾镇 | B78: 陈黄村 | C78: 袁月娥 | D78: 黄蜀葵 | E78: 1.5 | F78: 750
A79: 马湾镇 | B79: 陈黄村 | C79: 胡志祥 | D79: 黄蜀葵 | E79: 1.4 | F79: 700
A80: 马湾镇 | B80: 陈黄村 | C80: 陈小珍 | D80: 黄蜀葵 | E80: 1.5 | F80: 750
A81: 马湾镇 | B81: 陈黄村 | C81: 江中平 | D81: 水稻 | E81: 6 | F81: 600
A82: 马湾镇 | B82: 陈黄村 | C82: 魏培桂 | D82: 黄蜀葵 | E82: 1 | F82: 500
A83: 马湾镇 | B83: 陈黄村 | C83: 卢国际 | D83: 黄蜀葵 | E83: 3.1 | F83: 1550
A84: 马湾镇 | B84: 陈黄村 | C84: 周炎松 | D84: 黄蜀葵 | E84: 1.5 | F84: 750
A85: 马湾镇 | B85: 前进村 | C85: 张博益 | D85: 黄蜀葵 | E85: 1.3 | F85: 650
A86: 马湾镇 | B86: 榨屋村 | C86: 张鹏稳 | D86: 黄蜀葵 | E86: 2 | F86: 1000
A87: 马湾镇 | B87: 榨屋村 | C87: 张鹏稳 | D87: 莲藕 | E87: 6 | F87: 3000
A88: 马湾镇 | B88: 榨屋村 | C88: 张小振 | D88: 莲藕 | E88: 5 | F88: 2500
A89: 马湾镇 | B89: 榨屋村 | C89: 胡洋洲 | D89: 黄蜀葵 | E89: 1 | F89: 500
A90: 马湾镇 | B90: 榨屋村 | C90: 吴照祥 | D90: 黄蜀葵 | E90: 2 | F90: 1000
A91: 马湾镇 | B91: 榨屋村 | C91: 张小振 | D91: 黄蜀葵 | E91: 2.8 | F91: 1400
A92: 马湾镇 | B92: 榨屋村 | C92: 张同发 | D92: 黄蜀葵 | E92: 2 | F92: 1000
A93: 马湾镇 | B93: 榨屋村 | C93: 吴照丙 | D93: 黄蜀葵 | E93: 1.5 | F93: 750
A94: 马湾镇 | B94: 榨屋村 | C94: 胡勇军 | D94: 黄蜀葵 | E94: 3 | F94: 1500
A95: 马湾镇 | B95: 榨屋村 | C95: 万开国 | D95: 黄蜀葵 | E95: 2 | F95: 1000
A96: 马湾镇 | B96: 榨屋村 | C96: 胡汉兵 | D96: 黄蜀葵 | E96: 2 | F96: 1000
A97: 马湾镇 | B97: 榨屋村 | C97: 李爱秀 | D97: 莲藕 | E97: 30 | F97: 15000
A98: 马湾镇 | B98: 榨屋村 | C98: 张同发 | D98: 莲藕 | E98: 5 | F98: 2500
A99: 马湾镇 | B99: 华二村 | C99: 邱想珍 | D99: 水稻 | E99: 14.12 | F99: 1412
A100: 马湾镇 | B100: 华二村 | C100: 徐国林 | D100: 水稻 | E100: 10.96 | F100: 1096
A101: 马湾镇 | B101: 华二村 | C101: 严玉香 | D101: 水稻 | E101: 8.98 | F101: 898
A102: 马湾镇 | B102: 华二村 | C102: 何姣英 | D102: 水稻 | E102: 7.09 | F102: 709
A103: 马湾镇 | B103: 华二村 | C103: 程新山 | D103: 水稻 | E103: 12.17 | F103: 1217
A104: 马湾镇 | B104: 华二村 | C104: 樊四平 | D104: 水稻 | E104: 5.96 | F104: 596
A105: 马湾镇 | B105: 华二村 | C105: 魏小龙 | D105: 菱角 | E105: 30 | F105: 15000
A106: 马湾镇 | B106: 三合村 | C106: 龚永龙 | D106: 油菜 | E106: 6 | F106: 600
A107: 马湾镇 | B107: 三合村 | C107: 龚永龙 | D107: 水稻 | E107: 6 | F107: 600
A108: 马湾镇 | B108: 三合村 | C108: 王建方 | D108: 水稻 | E108: 3 | F108: 300
A109: 马湾镇 | B109: 三合村 | C109: 易花志 | D109: 黄蜀葵 | E109: 1.5 | F109: 750
A110: 马湾镇 | B110: 三合村 | C110: 刘全发 | D110: 黄蜀葵 | E110: 2.5 | F110: 1250
A111: 马湾镇 | B111: 三合村 | C111: 王建方 | D111: 油菜 | E111: 3 | F111: 300
A112: 马湾镇 | B112: 廖湾村 | C112: 廖国正 | D112: 水稻 | E112: 11.53 | F112: 1153
A113: 马湾镇 | B113: 廖湾村 | C113: 鲁银喜 | D113: 黄蜀葵 | E113: 1.2 | F113: 600
A114: 马湾镇 | B114: 廖湾村 | C114: 廖习军 | D114: 黄蜀葵 | E114: 2.2 | F114: 1100
A115: 马湾镇 | B115: 廖湾村 | C115: 廖学文 | D115: 黄蜀葵 | E115: 2.3 | F115: 1150
A116: 马湾镇 | B116: 蒋湖村 | C116: 郑艾强 | D116: 黄蜀葵 | E116: 1 | F116: 500
A117: 马湾镇 | C117: 62 | E117: =SUM(E55:E116) -> 282.21 | F117: =SUM(F55:F116) -> 92861
A118: 黄潭镇 | B118: 花台村 | C118: 张可清 | D118: 中药材种植（药菊） | E118: 1.7 | F118: 850
A119: 黄潭镇 | B119: 花台村 | C119: 张严华 | D119: 中药材种植（药菊） | E119: 6 | F119: 3000
A120: 黄潭镇 | B120: 花台村 | C120: 马么平 | D120: 中药材种植（药菊） | E120: 12 | F120: 6000
A121: 黄潭镇 | B121: 黄嘴村 | C121: 刘进林 | D121: 白菜 | E121: 8 | F121: 4000
A122: 黄潭镇 | B122: 向阳村 | C122: 向太平 | D122: 粮食种植（水稻） | E122: 9.9 | F122: 990
A123: 黄潭镇 | B123: 向阳村 | C123: 王小平 | D123: 蔬菜种植（莲藕） | E123: 8 | F123: 4000
A124: 黄潭镇 | B124: 七屋岭村 | C124: 吴春枝 | D124: 粮食种植（黄豆） | E124: 6 | F124: 600
A125: 黄潭镇 | B125: 七屋岭村 | C125: 何应平 | D125: 粮食种植（黄豆） | E125: 6 | F125: 600
A126: 黄潭镇 | B126: 万场村 | C126: 王满堂 | D126: 甜瓜种植 | E126: 2 | F126: 1000
A127: 黄潭镇 | B127: 小木桥村 | C127: 姜丽 | D127: 粮食种植（水稻） | E127: 4.3 | F127: 430
A128: 黄潭镇 | B128: 小木桥村 | C128: 姜丽 | D128: 苔菜、莴笋 | E128: 3 | F128: 1500
A129: 黄潭镇 | B129: 马家直河村 | C129: 马国富 | D129: 中药材种植（半夏） | E129: 4 | F129: 2000
A130: 黄潭镇 | B130: 危湖村 | C130: 危稳兵 | D130: 中药材种植（黄蜀葵） | E130: 1.5 | F130: 750
A131: 黄潭镇 | B131: 危湖村 | C131: 熊云华 | D131: 中药材种植（半夏） | E131: 2 | F131: 1000
A132: 黄潭镇 | B132: 危湖村 | C132: 曹新平 | D132: 中药材种植（黄蜀葵） | E132: 2 | F132: 1000
A133: 黄潭镇 | B133: 危湖村 | C133: 曾东枝 | D133: 中药材种植（半夏） | E133: 2 | F133: 1000
A134: 黄潭镇 | B134: 甘河岭村 | C134: 胡光明 | D134: 粮食种植（黄豆） | E134: 7 | F134: 700
A135: 黄潭镇 | B135: 姚垸村 | C135: 余茂军 | D135: 中药材种植（半夏） | E135: 7 | F135: 3500
A136: 黄潭镇 | B136: 复兴村 | C136: 杨明心 | D136: 豆角 | E136: 4.5 | F136: 2250
A137: 黄潭镇 | B137: 复兴村 | C137: 杨昌平 | D137: 豆角 | E137: 4.8 | F137: 2400
A138: 黄潭镇 | B138: 复兴村 | C138: 陈金周 | D138: 粮食种植（黄豆） | E138: 3.5 | F138: 350
A139: 黄潭镇 | C139: 21 | E139: =SUM(E118:E138) -> 105.2 | F139: =SUM(F118:F138) -> 37920
A140: 多宝镇 | B140: 彭场村 | C140: 张飞 | D140: 黄瓜、辣椒 | E140: 13 | F140: 6500
A141: 多宝镇 | B141: 彭场村 | C141: 段勇兵 | D141: 萝卜 | E141: 12 | F141: 6000
A142: 多宝镇 | B142: 彭场村 | C142: 段小和 | D142: 萝卜 | E142: 12 | F142: 6000
A143: 多宝镇 | B143: 彭场村 | C143: 王中年 | D143: 大白菜 | E143: 10 | F143: 5000
A144: 多宝镇 | B144: 郑场村 | C144: 李江海 | D144: 缸豆 | E144: 2.8 | F144: 1400
A145: 多宝镇 | B145: 张场村 | C145: 梅先云 | D145: 菜苔 | E145: 2.5 | F145: 1250
A146: 多宝镇 | B146: 罗汉村 | C146: 刘金中 | D146: 萝卜 | E146: 8.8 | F146: 4400
A147: 多宝镇 | B147: 罗汉村 | C147: 施小波 | D147: 萝卜 | E147: 7.5 | F147: 3750
A148: 多宝镇 | B148: 罗汉村 | C148: 刘毛宇 | D148: 萝卜 | E148: 5 | F148: 2500
A149: 多宝镇 | B149: 罗汉村 | C149: 刘青青 | D149: 萝卜 | E149: 5.7 | F149: 2850
A150: 多宝镇 | B150: 罗汉村 | C150: 刘亮 | D150: 萝卜 | E150: 13 | F150: 6500
A151: 多宝镇 | B151: 罗汉村 | C151: 施建新 | D151: 萝卜 | E151: 3.97 | F151: 1985
A152: 多宝镇 | B152: 严聂场村 | C152: 胡才秀 | D152: 半夏 | E152: 2.5 | F152: 1250
A153: 多宝镇 | B153: 严聂场村 | C153: 聂衍峰 | D153: 半夏 | E153: 1.2 | F153: 600
A154: 多宝镇 | B154: 严聂场村 | C154: 张丙山 | D154: 半夏 | E154: 1.5 | F154: 750
A155: 多宝镇 | B155: 严聂场村 | C155: 聂新村 | D155: 半夏 | E155: 3.2 | F155: 1600
A156: 多宝镇 | B156: 严聂场村 | C156: 张友元 | D156: 半夏 | E156: 1.6 | F156: 800
A157: 多宝镇 | B157: 严聂场村 | C157: 张录恭 | D157: 半夏 | E157: 10.2 | F157: 5100
A158: 多宝镇 | B158: 严聂场村 | C158: 马冬冬 | D158: 半夏 | E158: 2.8 | F158: 1400
A159: 多宝镇 | B159: 严聂场村 | C159: 张友生 | D159: 半夏 | E159: 2 | F159: 1000
A160: 多宝镇 | B160: 严聂场村 | C160: 张伏公 | D160: 半夏 | E160: 1.5 | F160: 750
A161: 多宝镇 | B161: 文湖村 | C161: 黄芳 | D161: 半夏 | E161: 2 | F161: 1000
A162: 多宝镇 | B162: 文湖村 | C162: 庞水山 | D162: 半夏 | E162: 3 | F162: 1500
A163: 多宝镇 | B163: 文湖村 | C163: 庞兰州 | D163: 半夏 | E163: 8 | F163: 4000
A164: 多宝镇 | B164: 文湖村 | C164: 庞金水 | D164: 半夏 | E164: 8.15 | F164: 4075
A165: 多宝镇 | B165: 团结村 | C165: 李红涛 | D165: 萝卜 | E165: 2 | F165: 1000
A166: 多宝镇 | B166: 团结村 | C166: 黄爱军 | D166: 大白菜 | E166: 3.6 | F166: 1800
A167: 多宝镇 | B167: 边湾村 | C167: 曾德虎 | D167: 花菜 | E167: 6 | F167: 3000
A168: 多宝镇 | B168: 边湾村 | C168: 高祥 | D168: 大白菜 | E168: 10 | F168: 5000
A169: 多宝镇 | B169: 边湾村 | C169: 高金国 | D169: 大白菜 | E169: 12 | F169: 6000
A170: 多宝镇 | B170: 中原村 | C170: 蔡青蓉 | D170: 花菜 | E170: 6.8 | F170: 3400
A171: 多宝镇 | B171: 中原村 | C171: 杜保山 | D171: 包菜 | E171: 15 | F171: 7500
A172: 多宝镇 | B172: 中原村 | C172: 朱进年 | D172: 包菜 | E172: 8 | F172: 4000
A173: 多宝镇 | B173: 中原村 | C173: 张大宏 | D173: 花菜 | E173: 15 | F173: 7500
A174: 多宝镇 | B174: 中原村 | C174: 张宏清 | D174: 西兰花 | E174: 5 | F174: 2500
A175: 多宝镇 | B175: 中原村 | C175: 闵昌新 | D175: 大白菜、包菜 | E175: 4 | F175: 2000
A176: 多宝镇 | B176: 中原村 | C176: 张玉山 | D176: 大白菜、包菜 | E176: 7 | F176: 3500
A177: 多宝镇 | B177: 中原村 | C177: 张琴 | D177: 花菜 | E177: 9 | F177: 4500
A178: 多宝镇 | B178: 中原村 | C178: 杨天国 | D178: 花菜 | E178: 6 | F178: 3000
A179: 多宝镇 | B179: 中原村 | C179: 刘爱国 | D179: 花菜 | E179: 6 | F179: 3000
A180: 多宝镇 | B180: 兴隆村 | C180: 王流豪 | D180: 石菖蒲（中药材） | E180: 10.5 | F180: 5250
A181: 多宝镇 | B181: 红土村 | C181: 王志海 | D181: 大白菜 | E181: 10 | F181: 5000
A182: 多宝镇 | B182: 红土村 | C182: 胡明 | D182: 大白菜 | E182: 13 | F182: 6500
A183: 多宝镇 | B183: 红土村 | C183: 彭三元 | D183: 大白菜 | E183: 11 | F183: 5500
A184: 多宝镇 | B184: 红土村 | C184: 彭会国 | D184: 大白菜 | E184: 9 | F184: 4500
A185: 多宝镇 | B185: 甘露村 | C185: 付明兰 | D185: 萝卜 | E185: 14.8 | F185: 7400
A186: 多宝镇 | B186: 甘露村 | C186: 文中科 | D186: 半夏 | E186: 1.5 | F186: 750
A187: 多宝镇 | B187: 甘露村 | C187: 李昌荣 | D187: 半夏 | E187: 7.5 | F187: 3750
A188: 多宝镇 | B188: 甘露村 | C188: 刘宏 | D188: 萝卜 | E188: 13.68 | F188: 6840
A189: 多宝镇 | B189: 甘露村 | C189: 郑小华 | D189: 大白菜 | E189: 14.2 | F189: 7100
A190: 多宝镇 | B190: 甘露村 | C190: 王新满 | D190: 萝卜 | E190: 15.2 | F190: 7600
A191: 多宝镇 | B191: 甘露村 | C191: 杨德华 | D191: 萝卜 | E191: 15 | F191: 7500
A192: 多宝镇 | B192: 曾岭村 | C192: 贺金洲 | D192: 包菜 | E192: 8 | F192: 4000
A193: 多宝镇 | B193: 曾岭村 | C193: 曾令武 | D193: 南瓜 | E193: 14 | F193: 7000
A194: 多宝镇 | B194: 曾岭村 | C194: 贺江涛 | D194: 大白菜 | E194: 9 | F194: 4500
A195: 多宝镇 | B195: 曾岭村 | C195: 刘锋华 | D195: 大白菜 | E195: 6 | F195: 3000
A196: 多宝镇 | B196: 曾岭村 | C196: 刘小群 | D196: 大白菜 | E196: 9 | F196: 4500
A197: 多宝镇 | B197: 曾岭村 | C197: 操见芝 | D197: 大白菜 | E197: 5 | F197: 2500
A198: 多宝镇 | B198: 曾岭村 | C198: 章光池 | D198: 大白菜 | E198: 13 | F198: 6500
A199: 多宝镇 | B199: 曾岭村 | C199: 贺永春 | D199: 大白菜 | E199: 13 | F199: 6500
A200: 多宝镇 | B200: 曾岭村 | C200: 徐成华 | D200: 大白菜 | E200: 15 | F200: 7500
... 1246 more rows
